[Event "I.A Hrvatska šahovska liga"]
[Site "Veli Lošinj, Croatia"]
[Date "2024.10.05"]
[Round "1.14"]
[White "Fercec, Nenad"]
[Black "Kuru, Atilla"]
[Result "1/2-1/2"]
[TimeControl "90 30 40 30"]
[WhiteFideId "14500299"]
[BlackFideId "51607948"]
[WhiteElo "2395"]
[BlackElo "2397"]

1. e4 {[%clk 01:30:48]} {[%emt 00:00:11]} e6 {[%clk 01:30:44]} {[%emt
00:00:17]} 2. d4 {[%clk 01:30:44]} {[%emt 00:00:34]} d5 {[%clk 01:31:08]}
{[%emt 00:00:05]} 3. Nd2 {[%clk 01:31:07]} {[%emt 00:00:06]} c5 {[%clk
01:31:33]} {[%emt 00:00:05]} 4. exd5 {[%clk 01:31:19]} {[%emt 00:00:19]} Qxd5
{[%clk 01:31:56]} {[%emt 00:00:07]} 5. Ngf3 {[%clk 01:31:26]} {[%emt 00:00:22]}
cxd4 {[%clk 01:32:21]} {[%emt 00:00:06]} 6. Bc4 {[%clk 01:31:48]} {[%emt
00:00:07]} Qd6 {[%clk 01:32:48]} {[%emt 00:00:03]} 7. Ne4 {[%clk 01:30:14]}
{[%emt 00:02:04]} Qb4+ {[%clk 01:33:15]} {[%emt 00:00:04]} 8. Nfd2 {[%clk
01:30:39]} {[%emt 00:00:05]} Nc6 {[%clk 01:33:40]} {[%emt 00:00:04]} 9. O-O
{[%clk 01:30:42]} {[%emt 00:00:27]} Nf6 {[%clk 01:34:07]} {[%emt 00:00:04]} 10.
c3 {[%clk 01:30:27]} {[%emt 00:00:46]} Qb6 {[%clk 01:33:12]} {[%emt 00:01:24]}
11. Nxf6+ {[%clk 01:30:32]} {[%emt 00:00:25]} gxf6 {[%clk 01:33:37]} {[%emt
00:00:06]} 12. Ne4 {[%clk 01:30:53]} {[%emt 00:00:08]} Be7 {[%clk 01:32:48]}
{[%emt 00:01:18]} 13. cxd4 {[%clk 01:26:45]} {[%emt 00:04:38]} Qxd4 {[%clk
01:32:47]} {[%emt 00:00:31]} 14. Qxd4 {[%clk 01:27:06]} {[%emt 00:00:10]} Nxd4
{[%clk 01:33:09]} {[%emt 00:00:07]} 15. Be3 {[%clk 01:27:33]} {[%emt 00:00:03]}
Nf5 {[%clk 01:28:49]} {[%emt 00:04:51]} 16. Bb5+ {[%clk 01:27:37]} {[%emt
00:00:26]} Kf8 {[%clk 01:28:01]} {[%emt 00:01:18]} 17. Bd2 {[%clk 01:26:33]}
{[%emt 00:01:32]} a6 {[%clk 01:28:07]} {[%emt 00:00:26]} 18. Bd3 {[%clk
01:25:16]} {[%emt 00:01:46]} h5 {[%clk 01:17:07]} {[%emt 00:11:31]} 19. Rac1
{[%clk 01:21:48]} {[%emt 00:03:57]} Kg7 {[%clk 01:16:53]} {[%emt 00:00:45]} 20.
Ba5 {[%clk 00:56:09]} {[%emt 00:26:07]} Bd7 {[%clk 01:16:00]} {[%emt 00:01:24]}
21. Nc5 {[%clk 00:56:11]} {[%emt 00:00:28]} Bb5 {[%clk 01:11:37]} {[%emt
00:04:53]} 22. Rfd1 {[%clk 00:48:17]} {[%emt 00:08:24]} Bxd3 {[%clk 01:11:21]}
{[%emt 00:00:46]} 23. Rxd3 {[%clk 00:48:24]} {[%emt 00:00:23]} Rhc8 {[%clk
01:03:59]} {[%emt 00:07:53]} 24. Rdc3 {[%clk 00:47:37]} {[%emt 00:01:17]} Rxc5
{[%clk 01:04:10]} {[%emt 00:00:19]} 25. Rxc5 {[%clk 00:48:00]} {[%emt
00:00:06]} Bxc5 {[%emt 00:00:04]} 26. Rxc5 {[%clk 00:48:21]} {[%emt 00:00:07]}
b6 {[%clk 01:05:06]} {[%emt 00:00:03]} 27. Bxb6 {[%clk 00:48:45]} {[%emt
00:00:06]} Rb8 {[%clk 01:05:32]} {[%emt 00:00:04]} 28. Bc7 {[%clk 00:41:53]}
{[%emt 00:07:21]} Rxb2 {[%clk 01:05:55]} {[%emt 00:00:08]} 29. g4 {[%clk
00:42:09]} {[%emt 00:00:14]} hxg4 {[%clk 01:04:41]} {[%emt 00:01:43]} 30. Rc4
{[%clk 00:42:25]} {[%emt 00:00:14]} Rxa2 {[%clk 01:03:38]} {[%emt 00:01:33]} 31.
Rxg4+ {[%clk 00:42:45]} {[%emt 00:00:10]} Kh7 {[%clk 01:04:01]} {[%emt
00:00:07]} 32. Bd8 {[%clk 00:42:48]} {[%emt 00:00:28]} Nh6 {[%clk 01:03:29]}
{[%emt 00:01:01]} 33. Rg3 {[%clk 00:42:46]} {[%emt 00:00:33]} f5 {[%clk
01:01:33]} {[%emt 00:02:26]} 34. h3 {[%clk 00:42:55]} {[%emt 00:00:21]} Ng8
{[%clk 00:57:30]} {[%emt 00:04:33]} 35. Rd3 {[%clk 00:38:47]} {[%emt 00:04:37]}
a5 {[%clk 00:57:40]} {[%emt 00:00:20]} 36. h4 {[%clk 00:35:06]} {[%emt
00:04:12]} a4 {[%clk 00:57:40]} {[%emt 00:00:29]} 37. h5 {[%clk 00:35:13]}
{[%emt 00:00:23]} Nh6 {[%clk 00:53:39]} {[%emt 00:04:32]} 38. f3 {[%clk
00:27:18]} {[%emt 00:08:24]} Kg7 {[%clk 00:51:45]} {[%emt 00:02:25]} 39. Ba5
{[%clk 00:25:39]} {[%emt 00:02:08]} Ng8 {[%clk 00:50:01]} {[%emt 00:02:14]} 40.
Bc3+ {[%clk 00:51:10]} {[%emt 00:04:59]} Kh6 {[%clk 01:05:27]} {[%emt
00:15:05]} 41. Rd8 {[%clk 00:50:08]} {[%emt 00:01:32]} Ra3 {[%clk 01:02:35]}
{[%emt 00:03:22]} 42. Be5 {[%clk 00:47:42]} {[%emt 00:02:53]} Kh7 {[%clk
00:59:12]} {[%emt 00:03:56]} 43. Rd7 {[%clk 00:47:03]} {[%emt 00:01:08]} Kh6
{[%clk 00:55:02]} {[%emt 00:04:41]} 44. Rxf7 {[%clk 00:33:17]} {[%emt
00:14:16]} Rxf3 {[%clk 00:52:54]} {[%emt 00:02:37]} 45. Rf8 {[%clk 00:07:34]}
{[%emt 00:26:13]} Kh7 {[%clk 00:52:57]} {[%emt 00:00:27]} 46. Rf7+ {[%clk
00:07:59]} {[%emt 00:00:05]} Kh6 {[%clk 00:53:23]} {[%emt 00:00:05]} 47. Rf8
{[%clk 00:08:26]} {[%emt 00:00:02]} Ne7 {[%clk 00:53:18]} {[%emt 00:00:35]} 48.
Kg2 {[%clk 00:08:24]} {[%emt 00:00:32]} Rd3 {[%clk 00:52:31]} {[%emt 00:01:17]}
49. Bf6 {[%clk 00:08:11]} {[%emt 00:00:44]} Kxh5 {[%clk 00:52:55]} {[%emt
00:00:06]} 50. Rh8+ {[%clk 00:08:09]} {[%emt 00:00:32]} Kg6 {[%clk 00:53:20]}
{[%emt 00:00:06]} 51. Bxe7 {[%clk 00:08:32]} {[%emt 00:00:05]} f4 {[%clk
00:53:10]} {[%emt 00:00:41]} 52. Ra8 {[%clk 00:08:46]} {[%emt 00:00:16]} e5
{[%clk 00:53:03]} {[%emt 00:00:37]} 53. Rxa4 {[%clk 00:08:44]} {[%emt
00:00:31]} Kf5 {[%clk 00:53:30]} {[%emt 00:00:03]} 54. Bc5 {[%clk 00:06:51]}
{[%emt 00:02:22]} Rd2+ {[%clk 00:53:33]} {[%emt 00:00:29]} 55. Bf2 {[%clk
00:07:03]} {[%emt 00:00:18]} e4 {[%clk 00:54:00]} {[%emt 00:00:03]} 56. Kf1
{[%clk 00:06:22]} {[%emt 00:01:10]} Rc2 {[%clk 00:53:40]} {[%emt 00:00:50]} 57.
Ba7 {[%clk 00:02:50]} {[%emt 00:04:02]} Rb2 {[%clk 00:53:31]} {[%emt 00:00:40]}
58. Ke1 {[%clk 00:03:04]} {[%emt 00:00:16]} f3 {[%clk 00:53:26]} {[%emt
00:00:34]} 59. Ra3 {[%clk 00:03:09]} {[%emt 00:00:24]} Kf4 {[%clk 00:53:35]}
{[%emt 00:00:22]} 60. Bd4 {[%clk 00:01:08]} {[%emt 00:02:30]} Rc2 {[%clk
00:53:34]} {[%emt 00:00:32]} 61. Ra8 {[%clk 00:01:02]} {[%emt 00:00:36]} e3
{[%clk 00:54:03]} {[%emt 00:00:02]} 62. Bxe3+ {[%clk 00:00:47]} {[%emt
00:00:45]} Kxe3 {[%clk 00:54:26]} {[%emt 00:00:06]} 63. Re8+ {[%clk 00:01:11]}
{[%emt 00:00:05]} Kf4 {[%clk 00:54:54]} {[%emt 00:00:04]} 64. Kf1 {[%clk
00:01:15]} {[%emt 00:00:25]} Rc1+ {[%clk 00:55:02]} {[%emt 00:00:23]} 65. Kf2
{[%clk 00:01:41]} {[%emt 00:00:04]} Rc2+ {[%clk 00:55:24]} {[%emt 00:00:07]} 66.
Kf1 {[%clk 00:02:08]} {[%emt 00:00:04]} Rg2 {[%clk 00:55:35]} {[%emt 00:00:18]}
67. Rf8+ {[%clk 00:02:24]} {[%emt 00:00:14]} Kg3 {[%clk 00:56:00]} {[%emt
00:00:05]} 68. Rg8+ {[%clk 00:02:49]} {[%emt 00:00:05]} Kh2 {[%clk 00:56:26]}
{[%emt 00:00:05]} 69. Rh8+ {[%clk 00:03:15]} {[%emt 00:00:04]} Kg3 {[%clk
00:56:50]} {[%emt 00:00:05]} 70. Rg8+ {[%clk 00:03:41]} {[%emt 00:00:04]} Kh3
{[%clk 00:57:18]} {[%emt 00:00:03]} 71. Rxg2 {[%clk 00:03:54]} {[%emt
00:00:17]} fxg2+ {[%clk 00:57:45]} {[%emt 00:00:03]} 72. Kg1 {[%clk 00:04:18]}
{[%emt 00:00:05]} Kg3 {[%clk 00:57:41]} {[%emt 00:00:03]} 1/2-1/2

[Event "I.A Hrvatska šahovska liga"]
[Site "Veli Lošinj, Croatia"]
[Date "2024.10.05"]
[Round "1.15"]
[White "Trbojevic, Mladen"]
[Black "Krsnik Cohar, Ivan Vihor"]
[Result "1-0"]
[TimeControl "90 30 40 30"]
[WhiteFideId "14505363"]
[BlackFideId "14520044"]
[WhiteElo "2325"]
[BlackElo "2331"]

1. e4 {[%clk 01:28:04]} {[%emt 00:02:55]} c5 {[%clk 01:30:55]} {[%emt
00:00:06]} 2. Nf3 {[%clk 01:27:54]} {[%emt 00:00:38]} Nc6 {[%clk 01:31:21]}
{[%emt 00:00:06]} 3. c3 {[%clk 01:28:01]} {[%emt 00:00:23]} e5 {[%clk
01:31:45]} {[%emt 00:00:05]} 4. Bc4 {[%clk 01:27:43]} {[%emt 00:00:49]} Be7
{[%clk 01:26:56]} {[%emt 00:05:19]} 5. d3 {[%clk 01:27:14]} {[%emt 00:00:58]}
Nf6 {[%clk 01:26:27]} {[%emt 00:01:00]} 6. O-O {[%clk 01:26:59]} {[%emt
00:00:45]} O-O {[%clk 01:26:23]} {[%emt 00:00:33]} 7. Re1 {[%clk 01:27:08]}
{[%emt 00:00:21]} d6 {[%clk 01:25:48]} {[%emt 00:01:06]} 8. Bg5 {[%clk
01:27:03]} {[%emt 00:00:34]} Na5 {[%clk 01:20:29]} {[%emt 00:05:49]} 9. Bxf6
{[%clk 01:23:55]} {[%emt 00:03:38]} Bxf6 {[%clk 01:20:49]} {[%emt 00:00:11]} 10.
Bd5 {[%clk 01:24:19]} {[%emt 00:00:06]} Nc6 {[%clk 01:21:12]} {[%emt 00:00:07]}
11. Nbd2 {[%clk 01:24:01]} {[%emt 00:00:47]} Ne7 {[%clk 01:21:36]} {[%emt
00:00:06]} 12. Bc4 {[%clk 01:20:58]} {[%emt 00:03:32]} Bg4 {[%clk 01:15:45]}
{[%emt 00:06:21]} 13. h3 {[%clk 01:19:20]} {[%emt 00:02:08]} Bd7 {[%clk
01:16:09]} {[%emt 00:00:07]} 14. Nf1 {[%clk 00:56:59]} {[%emt 00:22:51]} b5
{[%clk 01:06:05]} {[%emt 00:10:34]} 15. Bb3 {[%clk 00:57:11]} {[%emt 00:00:18]}
Bc6 {[%clk 01:06:01]} {[%emt 00:00:34]} 16. Ne3 {[%clk 00:55:49]} {[%emt
00:01:53]} Qd7 {[%clk 00:52:36]} {[%emt 00:13:55]} 17. d4 {[%clk 00:38:03]}
{[%emt 00:18:15]} c4 {[%clk 00:26:24]} {[%emt 00:26:43]} 18. Bc2 {[%clk
00:37:38]} {[%emt 00:00:54]} Qb7 {[%clk 00:25:05]} {[%emt 00:01:49]} 19. Ng4
{[%clk 00:34:12]} {[%emt 00:03:56]} Ng6 {[%clk 00:25:27]} {[%emt 00:00:08]} 20.
Nxf6+ {[%clk 00:33:49]} {[%emt 00:00:53]} gxf6 {[%emt 00:00:48]} 21. Nh2 {[%clk
00:33:33]} Qe7 {[%clk 00:23:03]} {[%emt 00:03:23]} 22. Ng4 {[%clk 00:29:34]}
{[%emt 00:04:29]} Bd7 {[%clk 00:17:52]} {[%emt 00:05:40]} 23. Nh6+ {[%clk
00:20:42]} {[%emt 00:09:22]} Kh8 {[%clk 00:18:22]} 24. Nf5 {[%clk 00:20:50]}
{[%emt 00:00:22]} Qd8 {[%clk 00:17:10]} {[%emt 00:01:40]} 25. Nxd6 {[%clk
00:18:19]} {[%emt 00:03:01]} Nf4 {[%emt 00:07:59]} 26. Re3 {[%clk 00:13:04]}
Qb6 {[%clk 00:12:50]} {[%emt 00:03:08]} 27. dxe5 {[%clk 00:08:27]} {[%emt
00:05:06]} Rad8 {[%clk 00:13:19]} 28. Qd4 {[%clk 00:06:54]} {[%emt 00:02:03]}
Qc6 {[%clk 00:11:39]} {[%emt 00:02:11]} 29. Kh2 {[%clk 00:05:17]} {[%emt
00:02:06]} Ng6 {[%clk 00:10:02]} {[%emt 00:02:08]} 30. exf6 {[%clk 00:04:38]}
{[%emt 00:01:08]} Bxh3 {[%clk 00:10:20]} {[%emt 00:00:13]} 31. Nxf7+ {[%clk
00:03:46]} {[%emt 00:01:22]} Rxf7 {[%clk 00:10:42]} {[%emt 00:00:07]} 32. Qxd8+
{[%clk 00:03:48]} {[%emt 00:00:28]} Rf8 {[%clk 00:11:12]} 33. Qd4 {[%clk
00:03:41]} {[%emt 00:00:36]} Qc7+ {[%clk 00:09:33]} {[%emt 00:02:09]} 34. e5
{[%clk 00:03:12]} {[%emt 00:00:59]} Rd8 {[%clk 00:10:02]} {[%emt 00:00:01]} 35.
Qe4 {[%clk 00:03:25]} {[%emt 00:00:17]} Be6 {[%clk 00:10:29]} {[%emt 00:00:03]}
36. Rd1 {[%clk 00:03:31]} {[%emt 00:00:24]} Re8 {[%clk 00:10:13]} {[%emt
00:00:46]} 37. Qd4 {[%clk 00:03:19]} {[%emt 00:00:42]} 1-0

[Event "I.A Hrvatska šahovska liga"]
[Site "Veli Lošinj, Croatia"]
[Date "2024.10.05"]
[Round "1.16"]
[White "Franic, Milan"]
[Black "Medak, Bojan"]
[Result "0-1"]
[TimeControl "90 30 40 30"]
[WhiteFideId "14500272"]
[BlackFideId "14502968"]
[WhiteElo "2364"]
[BlackElo "2329"]

1. d4 {[%clk 01:30:30]} {[%emt 04:41:34]} d5 {[%clk 01:29:32]} {[%emt
00:01:32]} 2. Nf3 {[%clk 01:30:30]} {[%emt 00:00:31]} e6 {[%clk 01:28:52]}
{[%emt 00:01:10]} 3. e3 {[%clk 01:28:37]} {[%emt 00:02:23]} a6 {[%clk
01:27:13]} {[%emt 00:02:09]} 4. Bd3 {[%clk 01:28:28]} {[%emt 00:00:40]} c5
{[%clk 01:25:29]} {[%emt 00:02:13]} 5. O-O {[%clk 01:28:44]} {[%emt 00:00:14]}
Nc6 {[%clk 01:25:15]} {[%emt 00:00:44]} 6. b3 {[%clk 01:28:14]} {[%emt
00:01:00]} cxd4 {[%clk 01:23:03]} {[%emt 00:02:43]} 7. exd4 {[%clk 01:28:24]}
{[%emt 00:00:19]} Bd6 {[%clk 01:22:17]} {[%emt 00:01:16]} 8. Bb2 {[%clk
01:12:21]} {[%emt 00:16:33]} Nge7 {[%clk 01:19:28]} {[%emt 00:03:18]} 9. c4
{[%clk 01:05:08]} {[%emt 00:07:45]} O-O {[%clk 01:14:15]} {[%emt 00:05:43]} 10.
Nbd2 {[%clk 01:05:08]} {[%emt 00:00:30]} Ng6 {[%clk 01:04:09]} {[%emt
00:10:36]} 11. Re1 {[%clk 01:04:28]} {[%emt 00:01:09]} b6 {[%clk 00:57:11]}
{[%emt 00:07:28]} 12. Rc1 {[%clk 01:00:51]} {[%emt 00:04:07]} dxc4 {[%clk
00:40:15]} {[%emt 00:17:26]} 13. bxc4 {[%clk 01:00:39]} {[%emt 00:00:42]} Bb7
{[%clk 00:40:33]} {[%emt 00:00:12]} 14. Bf1 {[%clk 00:51:07]} {[%emt 00:10:02]}
Re8 {[%clk 00:39:42]} {[%emt 00:01:22]} 15. Qb3 {[%clk 00:22:49]} {[%emt
00:28:47]} Qc7 {[%clk 00:26:45]} {[%emt 00:13:28]} 16. g3 {[%clk 00:21:57]}
{[%emt 00:01:22]} Na5 {[%clk 00:19:00]} {[%emt 00:08:14]} 17. Qc3 {[%clk
00:14:51]} {[%emt 00:07:35]} Bf8 {[%clk 00:17:47]} {[%emt 00:01:44]} 18. Nb3
{[%clk 00:12:10]} {[%emt 00:03:12]} Nc6 {[%clk 00:16:37]} {[%emt 00:01:40]} 19.
a3 {[%clk 00:09:35]} {[%emt 00:03:04]} Rac8 {[%clk 00:15:44]} {[%emt 00:01:22]}
20. d5 {[%clk 00:08:31]} {[%emt 00:01:35]} Nb8 {[%clk 00:10:03]} {[%emt
00:06:11]} 21. Qd4 {[%clk 00:08:37]} {[%emt 00:00:24]} exd5 {[%clk 00:09:50]}
{[%emt 00:00:43]} 22. cxd5 {[%clk 00:08:25]} {[%emt 00:00:42]} Qd6 {[%clk
00:10:14]} {[%emt 00:00:07]} 23. Rxc8 {[%clk 00:06:31]} {[%emt 00:02:24]} Rxc8
{[%clk 00:10:18]} {[%emt 00:00:25]} 24. Bg2 {[%clk 00:06:33]} {[%emt 00:00:28]}
Bxd5 {[%clk 00:06:45]} {[%emt 00:04:03]} 25. Rd1 {[%clk 00:03:38]} {[%emt
00:03:26]} Rd8 {[%clk 00:05:38]} {[%emt 00:01:37]} 26. Qe3 {[%clk 00:03:33]}
{[%emt 00:00:33]} Qc7 {[%clk 00:03:21]} {[%emt 00:02:47]} 27. Nbd4 {[%clk
00:03:53]} {[%emt 00:00:11]} Nc6 {[%clk 00:01:12]} {[%emt 00:02:40]} 28. Nf5
{[%clk 00:03:50]} {[%emt 00:00:32]} Bxf3 {[%clk 00:00:59]} {[%emt 00:00:44]} 29.
Bxf3 {[%clk 00:03:14]} {[%emt 00:01:06]} Rxd1+ {[%clk 00:01:23]} {[%emt
00:00:06]} 30. Bxd1 {[%clk 00:03:41]} {[%emt 00:00:02]} Nce5 {[%clk 00:01:19]}
{[%emt 00:00:34]} 31. Bb3 {[%clk 00:03:43]} {[%emt 00:00:28]} b5 {[%clk
00:01:17]} {[%emt 00:00:32]} 32. h4 {[%clk 00:03:24]} {[%emt 00:00:49]} Nc4
{[%clk 00:00:43]} {[%emt 00:01:04]} 33. Bxc4 {[%clk 00:03:48]} {[%emt
00:00:07]} bxc4 {[%clk 00:00:54]} {[%emt 00:00:19]} 34. h5 {[%clk 00:04:12]}
{[%emt 00:00:05]} Ne7 {[%clk 00:00:41]} {[%emt 00:00:42]} 35. Nh6+ {[%clk
00:02:45]} {[%emt 00:01:58]} gxh6 {[%clk 00:00:54]} {[%emt 00:00:17]} 36. Qd4
{[%clk 00:03:12]} {[%emt 00:00:03]} f6 {[%clk 00:01:01]} {[%emt 00:00:24]} 37.
Qxf6 {[%clk 00:03:34]} {[%emt 00:00:07]} Qc6 {[%clk 00:01:10]} {[%emt
00:00:20]} 38. Qh8+ {[%clk 00:02:11]} {[%emt 00:01:54]} Kf7 {[%clk 00:01:39]}
{[%emt 00:00:02]} 39. Qxh7+ {[%clk 00:02:35]} {[%emt 00:00:05]} Ke8 {[%clk
00:02:04]} {[%emt 00:00:05]} 40. Qh8 {[%clk 00:03:00]} {[%emt 00:00:05]} Qd5
{[%clk 00:32:16]} {[%emt 00:00:18]} 41. Qf6 {[%clk 00:31:36]} {[%emt 00:01:54]}
a5 {[%clk 00:28:26]} {[%emt 00:04:20]} 42. Bc3 {[%clk 00:29:18]} {[%emt
00:02:48]} Qd1+ {[%clk 00:27:12]} {[%emt 00:01:42]} 43. Kg2 {[%clk 00:29:43]}
{[%emt 00:00:07]} Qxh5 {[%clk 00:27:34]} {[%emt 00:00:09]} 44. Qb6 {[%clk
00:29:35]} {[%emt 00:00:37]} Qd5+ {[%clk 00:27:48]} {[%emt 00:00:16]} 45. Kg1
{[%clk 00:30:00]} {[%emt 00:00:04]} Nc6 {[%clk 00:28:04]} {[%emt 00:00:15]} 46.
Qe3+ {[%clk 00:28:58]} {[%emt 00:01:32]} Kd7 {[%clk 00:27:37]} {[%emt
00:00:56]} 47. a4 {[%clk 00:29:18]} {[%emt 00:00:10]} Qd3 {[%clk 00:27:01]}
{[%emt 00:01:06]} 48. Qf4 {[%clk 00:26:11]} {[%emt 00:03:39]} Qxc3 {[%clk
00:18:41]} {[%emt 00:08:49]} 49. Qxf8 {[%clk 00:26:29]} {[%emt 00:00:12]} Qe1+
{[%clk 00:18:18]} {[%emt 00:00:52]} 50. Kg2 {[%clk 00:26:51]} {[%emt 00:00:09]}
Qe6 {[%clk 00:16:09]} {[%emt 00:02:39]} 51. Qc5 {[%clk 00:25:41]} {[%emt
00:01:40]} Qe4+ {[%clk 00:15:09]} {[%emt 00:01:30]} 52. Kh2 {[%clk 00:24:57]}
{[%emt 00:01:15]} Qd4 {[%clk 00:14:42]} {[%emt 00:00:55]} 53. Qf5+ {[%clk
00:25:17]} {[%emt 00:00:11]} Kc7 {[%clk 00:15:06]} {[%emt 00:00:06]} 54. f4
{[%clk 00:25:13]} {[%emt 00:00:34]} c3 {[%clk 00:15:15]} {[%emt 00:00:21]} 55.
Qh7+ {[%clk 00:22:00]} {[%emt 00:03:43]} Qd7 {[%clk 00:15:21]} {[%emt
00:00:24]} 56. Qxh6 {[%clk 00:21:32]} {[%emt 00:00:58]} Qd2+ {[%clk 00:15:23]}
{[%emt 00:00:28]} 57. Kh3 {[%clk 00:21:59]} {[%emt 00:00:03]} c2 {[%clk
00:15:45]} {[%emt 00:00:07]} 58. Qg7+ {[%clk 00:22:24]} {[%emt 00:00:05]} Qd7+
{[%clk 00:16:11]} {[%emt 00:00:05]} 0-1

[Event "I.A Hrvatska šahovska liga"]
[Site "Veli Lošinj, Croatia"]
[Date "2024.10.05"]
[Round "1.17"]
[White "Krstic, Uros"]
[Black "Zufic, Miroslav"]
[Result "1-0"]
[TimeControl "90 30 40 30"]
[WhiteFideId "14503476"]
[BlackFideId "14506157"]
[WhiteElo "2300"]
[BlackElo "2339"]

1. e4 {[%clk 01:30:58]} {[%emt 00:00:01]} c5 {[%clk 01:30:49]} {[%emt
00:00:11]} 2. Nc3 {[%clk 01:31:00]} {[%emt 00:00:28]} Nc6 {[%clk 01:30:12]}
{[%emt 00:01:08]} 3. Bb5 {[%clk 01:31:21]} {[%emt 00:00:08]} Nd4 {[%clk
01:30:28]} {[%emt 00:00:15]} 4. Nf3 {[%clk 01:31:42]} {[%emt 00:00:08]} e6
{[%clk 01:30:12]} {[%emt 00:00:46]} 5. O-O {[%clk 01:31:27]} {[%emt 00:00:46]}
a6 {[%clk 01:30:36]} {[%emt 00:00:06]} 6. Bd3 {[%clk 01:31:43]} {[%emt
00:00:13]} Nc6 {[%clk 01:30:25]} {[%emt 00:00:41]} 7. b3 {[%clk 01:25:58]}
{[%emt 00:06:15]} d5 {[%clk 01:12:34]} {[%emt 00:18:21]} 8. exd5 {[%clk
01:13:00]} {[%emt 00:13:28]} exd5 {[%clk 01:12:59]} {[%emt 00:00:05]} 9. Re1+
{[%clk 01:10:15]} {[%emt 00:03:14]} Be7 {[%clk 01:11:40]} {[%emt 00:01:50]} 10.
Na4 {[%clk 00:41:32]} {[%emt 00:29:13]} Kf8 {[%clk 00:48:16]} {[%emt 00:23:54]}
11. c4 {[%clk 00:31:14]} {[%emt 00:10:48]} Nf6 {[%clk 00:24:52]} {[%emt
00:23:54]} 12. cxd5 {[%clk 00:23:47]} {[%emt 00:07:58]} Nb4 {[%clk 00:25:17]}
{[%emt 00:00:05]} 13. Bf1 {[%clk 00:14:37]} {[%emt 00:09:39]} b5 {[%clk
00:17:01]} {[%emt 00:08:46]} 14. Nc3 {[%clk 00:13:14]} {[%emt 00:01:53]} Nfxd5
{[%clk 00:13:39]} {[%emt 00:03:52]} 15. Nxd5 {[%clk 00:04:38]} {[%emt
00:09:06]} Qxd5 {[%clk 00:13:00]} {[%emt 00:01:09]} 16. a4 {[%clk 00:03:05]}
{[%emt 00:02:03]} Be6 {[%clk 00:02:49]} {[%emt 00:10:41]} 17. Ra3 {[%clk
00:02:09]} {[%emt 00:01:26]} Nd3 {[%clk 00:02:09]} {[%emt 00:01:10]} 18. Bxd3
{[%clk 00:01:38]} {[%emt 00:01:02]} Qxd3 {[%clk 00:02:35]} {[%emt 00:00:04]} 19.
b4 {[%clk 00:01:27]} {[%emt 00:00:40]} Qd8 {[%clk 00:00:47]} {[%emt 00:02:18]}
20. axb5 {[%clk 00:01:13]} {[%emt 00:00:45]} axb5 {[%clk 00:00:50]} {[%emt
00:00:27]} 21. bxc5 {[%clk 00:01:13]} {[%emt 00:00:29]} Bxc5 {[%clk 00:00:47]}
{[%emt 00:00:33]} 22. Rxa8 {[%clk 00:01:10]} {[%emt 00:00:34]} Qxa8 {[%clk
00:01:14]} {[%emt 00:00:03]} 23. Qc2 {[%clk 00:00:40]} {[%emt 00:00:59]} Be7
{[%clk 00:00:39]} {[%emt 00:01:05]} 24. Bb2 {[%clk 00:00:58]} {[%emt 00:00:13]}
Qd5 {[%clk 00:00:34]} {[%emt 00:00:34]} 25. Nd4 {[%clk 00:00:42]} {[%emt
00:00:47]} Bd7 {[%clk 00:00:49]} {[%emt 00:00:15]} 26. Qc7 {[%clk 00:00:41]}
{[%emt 00:00:31]} f6 {[%clk 00:00:33]} {[%emt 00:00:46]} 27. Qb8+ {[%clk
00:01:00]} {[%emt 00:00:11]} Be8 {[%clk 00:00:59]} {[%emt 00:00:04]} 28. Ba3
{[%clk 00:01:12]} {[%emt 00:00:18]} Qxd4 {[%clk 00:01:13]} {[%emt 00:00:16]} 29.
Rxe7 {[%clk 00:01:12]} {[%emt 00:00:30]} 1-0